bitfinex/quotes_BTCUSD_20240731
["timestamp","ask_amount","ask_price","bid_price","bid_amount"]
[1722401851398,8.98646696,65733.0,65728.0,1.65791104]
[1722401851601,8.98646696,65733.0,65728.0,1.66691104]
[1722401852185,8.98646696,65733.0,65728.0,1.69091104]
[1722401852405,8.98646696,65733.0,65728.0,1.70291104]
[1722401853313,8.98646696,65733.0,65728.0,1.67491104]
[1722401853519,0.001,65732.0,65728.0,1.68891104]
[1722401853721,8.98646696,65733.0,65728.0,1.68891104]
[1722401854075,8.98646696,65733.0,65728.0,1.70291104]
[1722401854289,8.98646696,65733.0,65728.0,1.68891104]
[1722401854696,8.98646696,65733.0,65728.0,1.70291104]
[1722401854905,8.98646696,65733.0,65728.0,1.68891104]
[1722401855314,0.00043227,65732.0,65728.0,1.70291104]
[1722401855521,8.98646696,65733.0,65728.0,2.00719504]
[1722401855747,8.98646696,65733.0,65728.0,1.70291104]
[1722401856151,8.98646696,65733.0,65728.0,2.00719504]
[1722401856353,8.98646696,65733.0,65728.0,1.70291104]
[1722401856546,0.00053872,65732.0,65728.0,1.68891104]
[1722401856768,8.98646696,65733.0,65728.0,1.70291104]
[1722401857497,8.98646696,65733.0,65728.0,1.67491104]
[1722401857697,8.98646696,65733.0,65728.0,1.99319504]
[1722401857957,8.98646696,65733.0,65728.0,2.00719504]
[1722401858190,8.98646696,65733.0,65728.0,2.00165304]
[1722401858399,8.98646696,65733.0,65732.0,1.85609004]
[1722401858610,8.98646696,65733.0,65732.0,1.95609004]
[1722401858820,8.98646696,65733.0,65732.0,1.97909004]
[1722401860690,8.98646696,65733.0,65732.0,1.99309004]
[1722401860914,8.98646696,65733.0,65732.0,2.31385504]
[1722401861127,8.98646696,65733.0,65732.0,2.32785504]
[1722401861357,8.83433696,65733.0,65732.0,2.38823]
[1722401861573,8.83433696,65733.0,65732.0,2.37423]
[1722401862236,8.83433696,65733.0,65732.0,2.36023]
[1722401862640,8.83433696,65733.0,65732.0,2.40483285]
[1722401862756,8.83433696,65733.0,65732.0,2.41883285]
[1722401863418,8.83433696,65733.0,65732.0,2.47123285]
[1722401863633,8.53165862,65733.0,65732.0,2.40825504]
[1722401863841,7.2598416,65733.0,65732.0,2.69265504]
[1722401864052,7.13861298,65733.0,65732.0,2.56273285]
[1722401864259,7.13861298,65733.0,65732.0,4.240538]
[1722401864260,5.39392855,65733.0,65732.0,4.240538]
[1722401864464,5.02966857,65733.0,65732.0,6.03841581]
[1722401864671,4.75901582,65733.0,65732.0,5.65241581]
[1722401864869,4.66773782,65733.0,65732.0,5.41062685]
[1722401865072,4.60688582,65733.0,65732.0,5.81062685]
[1722401865279,3.82262453,65733.0,65732.0,6.05550363]
[1722401865518,3.4207229,65733.0,65732.0,6.02900363]
[1722401865740,3.4207229,65733.0,65732.0,5.58720363]
[1722401865926,3.2685929,65733.0,65732.0,6.02900363]
[1722401866131,3.2685929,65733.0,65732.0,5.52900363]
[1722401866335,2.86145893,65733.0,65732.0,5.92900363]
[1722401866547,2.86145893,65733.0,65732.0,5.91500363]
[1722401866750,2.86145893,65733.0,65732.0,5.58010363]
[1722401867004,2.86145893,65733.0,65732.0,5.59410363]
[1722401867199,2.73975493,65733.0,65732.0,5.61161981]
[1722401867403,2.70932893,65733.0,65732.0,5.58361981]
[1722401867617,2.70932893,65733.0,65732.0,5.53550078]
[1722401867818,2.70932893,65733.0,65732.0,5.51712582]
[1722401868044,2.5744051,65733.0,65732.0,5.50312582]
[1722401868451,2.5439791,65733.0,65732.0,5.50312582]
[1722401868652,2.5439791,65733.0,65732.0,5.48912582]
[1722401869027,2.2969091,65733.0,65732.0,5.58912582]
[1722401869227,2.2969091,65733.0,65732.0,5.48912582]
[1722401869488,2.13347316,65733.0,65732.0,5.78701473]
[1722401869840,2.10304716,65733.0,65732.0,5.7528957]
[1722401870099,2.01176916,65733.0,65732.0,5.7668957]
[1722401870229,1.98134316,65733.0,65732.0,5.7528957]
[1722401870735,1.87241947,65733.0,65732.0,5.61712582]
[1722401870929,1.84199347,65733.0,65732.0,5.61712582]
[1722401871129,1.78114147,65733.0,65732.0,5.71712582]
[1722401871409,1.72703971,65733.0,65732.0,5.61712582]
[1722401871629,1.72703971,65733.0,65732.0,5.32891892]
[1722401872048,1.60533571,65733.0,65732.0,5.15613795]
[1722401872255,1.57490971,65733.0,65732.0,2.53688504]
[1722401872665,1.57490971,65733.0,65732.0,2.44525504]
[1722401872860,1.57490971,65733.0,65732.0,2.43125504]
[1722401873096,1.32251348,65733.0,65732.0,2.43125504]
[1722401873309,1.32251348,65733.0,65732.0,2.69758504]
[1722401873849,1.29208748,65733.0,65732.0,2.68358504]
[1722401874068,1.29208748,65733.0,65732.0,2.44525504]
[1722401875261,0.71368359,65733.0,65732.0,3.0938322]
[1722401875682,0.71368359,65733.0,65732.0,3.14360208]
[1722401875683,0.70693335,65733.0,65732.0,3.14360208]
[1722401876021,0.58522935,65733.0,65732.0,3.0798322]
[1722401876181,0.55480335,65733.0,65732.0,3.0798322]
[1722401876383,0.55480335,65733.0,65732.0,4.5938322]
[1722401876587,0.3119816,65733.0,65732.0,4.5938322]
[1722401877000,0.3119816,65733.0,65732.0,4.5798322]
[1722401877001,0.1063546,65733.0,65732.0,4.5798322]
[1722401877181,0.08802184,65733.0,65732.0,4.5938322]
[1722401877377,0.02422184,65733.0,65732.0,4.5938322]
[1722401877641,0.00943801,65756.0,65755.0,0.032]
[1722401877814,0.00943801,65756.0,65755.0,0.94303004]
[1722401878005,0.01673504,65756.0,65755.0,1.65134804]
[1722401878346,0.00943801,65756.0,65755.0,1.97850704]
[1722401879502,0.00943801,65756.0,65755.0,1.99250704]
[1722401880061,0.00943801,65756.0,65755.0,2.00650704]
[1722401880472,0.00943801,65756.0,65755.0,1.99250704]
[1722401880729,0.00943801,65756.0,65755.0,2.00650704]
[1722401880963,0.00943801,65756.0,65755.0,1.68834804]
[1722401881167,0.00943801,65756.0,65755.0,1.70234804]
[1722401881371,0.00943801,65756.0,65755.0,1.68834804]
[1722401881586,1e-08,65756.0,65755.0,2.54899604]
[1722401881792,1e-08,65756.0,65755.0,2.25883704]
[1722401882026,1e-08,65756.0,65755.0,2.10439595]
[1722401882448,1e-08,65756.0,65755.0,2.09039595]
[1722401882654,1e-08,65756.0,65755.0,2.02827692]
[1722401882866,1e-08,65756.0,65755.0,2.04227692]
[1722401883291,1e-08,65756.0,65755.0,2.02827692]
[1722401883507,1e-08,65756.0,65755.0,2.04227692]
[1722401883725,1e-08,65756.0,65755.0,2.05157605]
[1722401883926,1e-08,65756.0,65755.0,2.06557605]
[1722401884128,1e-08,65756.0,65755.0,2.05157605]
[1722401884562,1e-08,65756.0,65755.0,2.06557605]
[1722401884784,1e-08,65756.0,65755.0,1.74741705]
[1722401884989,1e-08,65756.0,65755.0,1.76141705]
[1722401885199,1e-08,65756.0,65755.0,1.74741705]
[1722401885411,1e-08,65756.0,65755.0,3.50180617]
[1722401885629,1e-08,65756.0,65755.0,1.76141705]
[1722401885896,1e-08,65756.0,65755.0,1.74741705]
[1722401886136,1e-08,65756.0,65755.0,1.73341705]
[1722401886353,1e-08,65756.0,65755.0,1.74741705]
[1722401886582,1e-08,65756.0,65755.0,1.69764717]
[1722401886815,1e-08,65756.0,65755.0,1.68364717]
[1722401887029,1e-08,65756.0,65755.0,1.69764717]
[1722401887242,0.06200001,65756.0,65755.0,1.03221808]
[1722401887461,0.26856142,65756.0,65755.0,0.63487104]
[1722401887675,0.26856142,65756.0,65755.0,0.16463304]
[1722401887886,0.45814765,65756.0,65755.0,0.17863304]
[1722401888315,0.45814765,65756.0,65755.0,0.09803304]
[1722401888642,0.45814765,65756.0,65755.0,0.11203304]
[1722401888841,0.45814765,65756.0,65755.0,0.09803304]
[1722401889055,0.45814765,65756.0,65740.0,0.01]
[1722401889056,0.0624,65745.0,65732.0,0.071848]
[1722401889268,0.0624,65745.0,65739.0,0.456345]
[1722401889269,0.2209,65740.0,65739.0,0.456345]
[1722401889480,0.2209,65740.0,65739.0,0.91121104]
[1722401889691,0.34732685,65740.0,65739.0,0.91121104]
[1722401889918,0.12642685,65740.0,65739.0,1.21544404]
[1722401890354,0.12642685,65740.0,65739.0,1.22544404]
[1722401890764,0.12642685,65740.0,65739.0,1.32744404]
[1722401891184,0.12642685,65740.0,65739.0,1.63167704]
[1722401891388,0.12642685,65740.0,65739.0,1.67467704]
[1722401891797,0.12642685,65740.0,65739.0,1.33844404]
[1722401892005,0.12642685,65740.0,65739.0,1.42279795]
[1722401892424,0.001,65740.0,65739.0,1.43679795]
[1722401892629,0.12741578,65740.0,65739.0,1.45079795]
[1722401893261,0.12641578,65740.0,65739.0,1.45079795]
[1722401893493,0.12641578,65740.0,65739.0,1.48479795]
[1722401893494,0.001,65740.0,65739.0,1.48479795]
[1722401893673,0.001,65740.0,65739.0,1.48679795]
[1722401893880,0.0821,65744.0,65739.0,0.38598695]
[1722401894102,0.12641566,65743.0,65742.0,0.456328]
[1722401894323,0.12641566,65743.0,65742.0,1.01118004]
[1722401894544,0.12641566,65743.0,65742.0,1.31539904]
[1722401894791,1e-08,65756.0,65755.0,1.094556]
[1722401895014,0.45387916,65768.0,65767.0,0.760257]
[1722401895234,0.00943801,65768.0,65767.0,1.16436]
[1722401895454,0.00943801,65768.0,65767.0,1.31499304]
[1722401896633,0.01043801,65768.0,65767.0,1.34299304]
[1722401897745,0.01043801,65768.0,65767.0,1.35499304]
[1722401897963,0.01043801,65768.0,65767.0,1.65909604]
[1722401898179,0.01043801,65768.0,65767.0,1.7994085]
[1722401898644,0.00943801,65768.0,65767.0,1.7854085]
[1722401898860,0.00943801,65768.0,65767.0,1.7714085]
[1722401899088,0.00943801,65768.0,65767.0,1.7994085]
[1722401899323,0.00943801,65768.0,65767.0,2.1035115]
[1722401899584,0.00943801,65768.0,65767.0,2.0755115]
[1722401899795,0.00943801,65768.0,65767.0,2.1035115]
[1722401900008,0.00943801,65768.0,65767.0,2.0895115]
[1722401900470,0.00943801,65768.0,65767.0,2.3936145]
[1722401901205,2e-08,65769.0,65768.0,2.229543]
[1722401901430,2e-08,65769.0,65768.0,2.63100702]
[1722401901654,2e-08,65769.0,65768.0,4.23001968]
[1722401902332,2e-08,65769.0,65768.0,4.28580371]
[1722401902555,2e-08,65769.0,65768.0,4.24401968]
[1722401903028,2e-08,65769.0,65768.0,4.23001968]
[1722401903240,2e-08,65769.0,65768.0,4.31404922]
[1722401903446,2e-08,65769.0,65768.0,4.24401968]
[1722401903890,2e-08,65769.0,65768.0,4.25801968]
[1722401904109,2e-08,65769.0,65768.0,4.24401968]
[1722401904328,2e-08,65769.0,65768.0,4.29977602]
[1722401904557,2e-08,65769.0,65768.0,4.24401968]
[1722401904781,2e-08,65769.0,65768.0,4.02311968]
[1722401905417,2e-08,65769.0,65768.0,4.26144968]
[1722401905629,2e-08,65769.0,65768.0,4.27544968]
[1722401905844,2e-08,65769.0,65768.0,4.55198824]
[1722401906466,2e-08,65769.0,65768.0,4.5521481]
[1722401906690,2e-08,65769.0,65768.0,4.5661481]
[1722401906906,2e-08,65769.0,65768.0,4.5521481]
[1722401907338,2e-08,65769.0,65768.0,4.51690532]
[1722401907797,2e-08,65769.0,65768.0,4.48890532]
[1722401908024,2e-08,65769.0,65768.0,4.51690532]
[1722401908448,2e-08,65769.0,65768.0,4.51649063]
[1722401908924,2e-08,65769.0,65768.0,4.46672075]
[1722401909335,2e-08,65769.0,65768.0,4.45272075]
[1722401909535,2e-08,65769.0,65768.0,4.46672075]
[1722401909744,2e-08,65769.0,65768.0,4.45272075]
[1722401909948,0.43994117,65790.0,65789.0,1.400009]
[1722401910157,0.43994117,65790.0,65789.0,1.74892196]
[1722401910370,0.1469,65794.0,65793.0,0.759957]
[1722401910581,0.1469,65794.0,65793.0,0.91059004]
[1722401910784,0.1469,65794.0,65793.0,1.21457304]
[1722401910991,0.1469,65794.0,65793.0,1.31457304]
[1722401911196,0.1469,65794.0,65793.0,1.61855604]
[1722401911444,0.1469,65794.0,65793.0,1.74583004]
[1722401911630,0.1469,65794.0,65793.0,1.77083004]
[1722401911878,0.1469,65794.0,65793.0,1.74883004]
[1722401912089,0.1469,65794.0,65793.0,1.78283004]
[1722401912302,0.1469,65794.0,65793.0,1.78483004]
[1722401912513,0.1469,65794.0,65793.0,1.77083004]
[1722401912927,0.1469,65794.0,65793.0,1.78483004]
[1722401913583,0.1469,65794.0,65793.0,1.79883004]
[1722401913756,0.08273,65794.0,65793.0,1.78483004]
[1722401913970,0.08273,65794.0,65793.0,1.76283004]
[1722401914186,0.00083,65794.0,65793.0,2.10081304]
[1722401914399,0.00083,65794.0,65793.0,2.10281304]
[1722401915018,0.00083,65794.0,65793.0,1.79883004]
[1722401915236,0.00083,65794.0,65793.0,1.79683004]
[1722401915436,0.00083,65794.0,65793.0,1.77683004]
[1722401916323,0.00083,65794.0,65793.0,1.79683004]
[1722401917200,0.00083,65794.0,65793.0,1.77683004]
[1722401917383,0.00083,65794.0,65793.0,1.79683004]
[1722401918601,0.00083,65794.0,65793.0,1.79883004]
[1722401922257,0.00083,65794.0,65793.0,1.85913004]
[1722401922687,0.00083,65794.0,65793.0,2.16311304]
[1722401925494,0.00083,65794.0,65793.0,2.30411304]
[1722401925700,0.00083,65794.0,65793.0,2.60809604]
[1722401926108,1e-08,65795.0,65794.0,1.703884]
[1722401926322,1e-08,65799.0,65798.0,0.032]
[1722401926510,0.0005,65809.0,65808.0,1.095699]
[1722401926662,0.0005,65809.0,65808.0,1.95141187]
[1722401926910,0.0005,65809.0,65808.0,2.05141187]
[1722401927106,0.0765,65818.0,65817.0,1.377424]
[1722401927323,0.0765,65818.0,65817.0,1.81806545]
[1722401927504,0.0792,65823.0,65821.0,1.095489]
[1722401927704,0.0792,65823.0,65821.0,1.69797854]
[1722401927903,0.0792,65823.0,65821.0,1.79797854]
[1722401928108,0.0792,65823.0,65821.0,1.41135466]
[1722401928348,0.0792,65823.0,65821.0,1.43435466]
[1722401928921,0.0792,65823.0,65821.0,1.75220866]
[1722401929250,0.0792,65823.0,65821.0,1.73820866]
[1722401929466,0.0792,65823.0,65821.0,1.75220866]
[1722401929890,0.0792,65823.0,65821.0,1.42535466]
[1722401930086,0.0792,65823.0,65821.0,1.43935466]
[1722401930087,0.07487,65822.0,65821.0,1.43935466]
[1722401930555,0.07487,65822.0,65821.0,1.42535466]
[1722401930764,0.07487,65822.0,65821.0,1.43935466]
[1722401930976,0.07487,65822.0,65821.0,1.42535466]
[1722401931407,0.07487,65822.0,65821.0,1.43935466]
[1722401931623,0.07467,65822.0,65821.0,1.43935466]
[1722401931826,0.07467,65822.0,65821.0,1.42535466]
[1722401932031,0.07467,65822.0,65821.0,1.43935466]
[1722401932462,0.07467,65822.0,65821.0,1.44835466]
[1722401932673,0.00837,65822.0,65821.0,1.77020866]
[1722401932878,0.00837,65822.0,65821.0,1.78420866]
[1722401933209,0.00837,65822.0,65821.0,1.79820866]
[1722401933421,0.00837,65822.0,65821.0,1.8510045]
[1722401933631,0.00837,65822.0,65821.0,1.81220866]
[1722401933839,0.00837,65822.0,65821.0,1.8150045]
[1722401934041,0.00837,65822.0,65821.0,1.78220866]
[1722401934250,0.00837,65822.0,65821.0,1.79620866]
[1722401934488,0.00837,65822.0,65821.0,1.78220866]
[1722401934866,0.00837,65822.0,65821.0,2.2775585]
[1722401935067,0.00857,65834.0,65828.0,1.093377]
[1722401935292,0.00857,65834.0,65828.0,1.7743267]
[1722401936262,0.00857,65834.0,65828.0,1.7543267]
[1722401936465,0.00857,65834.0,65828.0,1.7763267]
[1722401936663,0.00857,65834.0,65828.0,1.7903267]
[1722401936938,0.00857,65834.0,65828.0,1.88754898]
[1722401937270,0.00857,65834.0,65828.0,1.90154898]
[1722401937495,0.00857,65834.0,65828.0,1.79805432]
[1722401937860,0.00857,65834.0,65828.0,1.78405432]
[1722401938173,0.00857,65834.0,65828.0,2.1111653]
[1722401938372,0.00857,65834.0,65828.0,1.7853433]
[1722401938771,0.00857,65834.0,65828.0,1.7933433]
[1722401938971,0.00857,65834.0,65828.0,1.8073433]
[1722401939166,0.00857,65834.0,65828.0,1.7933433]
[1722401939633,0.00857,65834.0,65828.0,1.8073433]
[1722401939829,0.001,65833.0,65828.0,1.8073433]
[1722401940506,0.00857,65834.0,65828.0,2.1111653]
[1722401940837,0.00857,65834.0,65828.0,1.83813914]
[1722401941038,0.00857,65834.0,65828.0,1.7853433]
[1722401941236,0.00857,65834.0,65828.0,1.8053433]
[1722401941462,0.00857,65834.0,65828.0,1.8073433]
[1722401941757,0.00857,65860.0,65859.0,0.151839]
[1722401941980,0.05300454,65903.0,65871.0,0.01]
[1722401942177,0.05300454,65903.0,65863.0,0.43718]
[1722401942178,0.002,65900.0,65874.0,0.03052]
[1722401942377,0.01,65897.0,65887.0,0.455325]
[1722401942575,0.01,65890.0,65887.0,0.70705606]
[1722401942778,0.01,65890.0,65887.0,0.65246022]
[1722401943000,0.01856,65888.0,65887.0,0.25173106]
[1722401943347,0.14906,65888.0,65887.0,0.40350606]
[1722401943554,0.14906,65888.0,65887.0,0.65246022]
[1722401943725,0.15906,65888.0,65887.0,0.34891022]
[1722401944159,0.14906,65888.0,65887.0,0.95601022]
[1722401944370,0.14906,65888.0,65887.0,1.27356022]
[1722401944610,0.14906,65888.0,65887.0,1.28756022]
[1722401944772,0.14906,65888.0,65887.0,1.43819326]
[1722401944972,0.00856,65888.0,65887.0,1.43819326]
[1722401945182,0.00856,65888.0,65887.0,1.72774326]
[1722401945384,0.00856,65888.0,65887.0,1.44719326]
[1722401945933,0.00856,65888.0,65887.0,1.43319326]
[1722401946117,0.00856,65888.0,65887.0,1.44719326]
[1722401946579,0.00856,65888.0,65887.0,1.46119326]
[1722401946951,0.00856,65888.0,65887.0,1.43319326]
[1722401947169,0.00856,65888.0,65887.0,1.44719326]
[1722401947366,0.00856,65888.0,65887.0,1.46119326]
[1722401947567,0.00856,65888.0,65887.0,1.44719326]
[1722401947998,0.00856,65888.0,65887.0,1.73674326]
[1722401948436,0.00856,65895.0,65894.0,1.365826]
[1722401948714,0.02,65920.0,65908.0,0.758632]
[1722401948930,0.01,65920.0,65908.0,1.63627531]
[1722401949259,0.0785,65922.0,65908.0,2.03972831]
[1722401949520,0.0658,65928.0,65908.0,2.03972831]
[1722401949964,0.01,65923.0,65908.0,1.73627531]
[1722401950215,0.0658,65928.0,65908.0,1.73627531]
[1722401950216,0.01,65921.0,65908.0,1.75027531]
[1722401950467,0.01,65925.0,65908.0,1.73627531]
[1722401950645,0.01,65925.0,65908.0,1.74524402]
[1722401950849,0.01,65923.0,65908.0,1.75924402]
[1722401951192,0.01,65924.0,65908.0,1.75924402]
[1722401951534,0.01,65924.0,65908.0,1.77324402]
[1722401952117,0.01,65925.0,65908.0,1.74524402]
[1722401952315,0.0658,65928.0,65908.0,2.06269702]
[1722401952635,0.01,65926.0,65908.0,1.75924402]
[1722401953036,0.01,65926.0,65908.0,1.77324402]
[1722401953291,0.0658,65928.0,65908.0,1.75924402]
[1722401953698,0.01,65927.0,65908.0,1.75924402]
[1722401953870,0.0758,65928.0,65908.0,1.74524402]
[1722401954096,0.0658,65928.0,65927.0,1.061777]
[1722401954274,0.0005,65929.0,65928.0,0.455041]
[1722401954504,0.0005,65929.0,65928.0,1.55031802]
[1722401954715,0.0005,65929.0,65928.0,2.93247086]
[1722401954954,0.0005,65929.0,65928.0,3.23583186]
[1722401955163,0.0005,65929.0,65928.0,3.53919286]
[1722401955786,0.0005,65929.0,65928.0,3.29450105]
[1722401955990,0.0005,65929.0,65928.0,3.24983186]
[1722401956192,0.0005,65929.0,65928.0,3.23583186]
[1722401956403,0.0005,65929.0,65928.0,3.24983186]
[1722401956607,0.0005,65929.0,65928.0,1.74983186]
[1722401956817,0.0005,65929.0,65928.0,1.73583186]
[1722401957023,0.0005,65929.0,65928.0,1.74499315]
[1722401957265,0.0005,65929.0,65928.0,2.04835415]
[1722401957662,0.0005,65929.0,65928.0,2.06235415]
[1722401957875,0.0005,65929.0,65928.0,1.75899315]
[1722401958554,0.0005,65929.0,65928.0,2.06235415]
[1722401958754,0.0149525,65938.0,65937.0,1.061616]
[1722401958955,0.0149525,65938.0,65937.0,1.43231061]
[1722401959167,0.0149525,65938.0,65937.0,1.73562961]
[1722401960432,0.0149525,65938.0,65937.0,1.74962961]
[1722401960873,0.0149525,65938.0,65937.0,1.73562961]
[1722401961930,0.0149525,65938.0,65937.0,1.4769798]
[1722401962139,0.0149525,65938.0,65937.0,1.43231061]
[1722401962343,0.01392962,65938.0,65937.0,1.44631061]
[1722401962547,0.01392962,65938.0,65937.0,1.43231061]
[1722401962746,0.01392962,65938.0,65937.0,1.40931061]
[1722401962956,0.01392962,65938.0,65937.0,1.42331061]
[1722401963187,6.2e-07,65938.0,65937.0,2.21860601]
[1722401963610,6.2e-07,65938.0,65937.0,3.73260601]
[1722401963823,6.2e-07,65938.0,65937.0,3.41528701]
[1722401964235,6.2e-07,65938.0,65937.0,3.42928701]
[1722401964930,6.2e-07,65938.0,65937.0,3.68088701]
[1722401965126,6.2e-07,65938.0,65937.0,3.72844612]
[1722401965334,6.2e-07,65938.0,65937.0,3.73452112]
[1722401965539,6.2e-07,65938.0,65937.0,3.67296201]
[1722401965740,6.2e-07,65938.0,65937.0,3.99028101]
[1722401966361,6.2e-07,65938.0,65937.0,4.00278101]
[1722401966614,6.2e-07,65938.0,65937.0,3.97478101]
[1722401967061,6.2e-07,65938.0,65937.0,4.29210001]
[1722401967269,6.2e-07,65938.0,65937.0,4.38549203]
[1722401967480,6.2e-07,65938.0,65937.0,4.1293501]
[1722401967692,6.2e-07,65938.0,65937.0,4.08217303]
[1722401968116,6.2e-07,65938.0,65937.0,4.1293501]
[1722401968542,6.2e-07,65938.0,65937.0,4.1153501]
[1722401968771,6.2e-07,65938.0,65937.0,4.1293501]
[1722401968981,6.2e-07,65938.0,65937.0,4.08217303]
[1722401969193,6.2e-07,65938.0,65937.0,4.06817303]
[1722401969404,6.2e-07,65938.0,65937.0,3.58165403]
[1722401969610,6.2e-07,65938.0,65937.0,1.9107247]
[1722401969849,6.2e-07,65938.0,65937.0,1.6748047]
[1722401970049,6.2e-07,65938.0,65937.0,1.01960401]
[1722401970050,1.00000062,65938.0,65937.0,1.01960401]
[1722401970262,1.00000062,65938.0,65937.0,1.03360401]
[1722401970466,1.00000062,65938.0,65937.0,0.71628501]
[1722401970678,1.00000062,65938.0,65937.0,0.26280701]
[1722401970679,1.01000062,65938.0,65937.0,0.26280701]
[1722401970886,1.01000062,65938.0,65937.0,0.40542861]
[1722401971122,1.01000062,65938.0,65937.0,0.25376961]
[1722401971328,1.17480062,65938.0,65937.0,0.25376961]
[1722401971535,1.17280062,65938.0,65937.0,0.25376961]
[1722401971969,1.17280062,65938.0,65922.0,0.303386]
[1722401971970,0.01,65920.0,65919.0,0.151701]
[1722401972187,0.01,65920.0,65903.0,0.303473]
[1722401972188,0.15,65925.0,65909.0,0.44444115]
[1722401972432,0.15,65925.0,65904.0,0.07534716]
[1722401972433,0.01,65923.0,65922.0,0.060785]
[1722401972666,0.15,65925.0,65924.0,0.151689]
[1722401972667,0.16,65925.0,65924.0,0.151689]
[1722401972882,0.15,65925.0,65924.0,0.455068]
[1722401973091,0.15,65925.0,65924.0,0.60570104]
[1722401973297,0.16,65925.0,65924.0,0.15063304]
[1722401973503,0.16,65925.0,65924.0,0.30232204]
[1722401974094,0.16,65925.0,65924.0,0.60570104]
[1722401974311,0.15,65925.0,65924.0,0.30232204]
[1722401974513,0.16,65925.0,65924.0,0.30232204]
[1722401974713,0.16,65925.0,65924.0,0.60570104]
[1722401974918,0.15,65925.0,65924.0,0.60570104]
[1722401975338,0.151,65925.0,65924.0,0.71970104]
[1722401975500,0.161,65925.0,65924.0,0.70570104]
[1722401975902,0.152,65925.0,65924.0,0.70870104]
[1722401976263,0.152,65925.0,65924.0,1.01208004]
[1722401976473,0.142,65925.0,65924.0,1.31545904]
[1722401976691,0.002,65925.0,65924.0,1.31545904]
[1722401976885,0.002,65925.0,65924.0,1.33845904]
[1722401977509,0.002,65925.0,65924.0,1.01208004]
[1722401977730,0.002,65925.0,65924.0,0.70870104]
[1722401977930,0.01,65926.0,65924.0,0.70870104]
[1722401977931,0.03,65926.0,65925.0,0.151687]
[1722401978138,0.002,65929.0,65924.0,0.1]
[1722401978139,0.03,65925.0,65924.0,0.1]
[1722401978345,0.031,65925.0,65924.0,0.265689]
[1722401978753,0.033,65925.0,65924.0,0.265689]
[1722401978962,0.033,65925.0,65924.0,0.26463304]
[1722401979388,0.033,65925.0,65924.0,0.16463304]
[1722401980676,0.033,65925.0,65924.0,0.014]
[1722401980677,0.1768,65925.0,65924.0,0.014]
[1722401985225,0.1768,65925.0,65924.0,0.0155542]
[1722401985431,0.1448,65925.0,65924.0,0.62125524]
[1722401985660,0.1448,65925.0,65924.0,0.71970104]
[1722401985892,0.1448,65925.0,65924.0,1.32645904]
[1722401986357,0.1548,65925.0,65924.0,1.02308004]
[1722401986594,0.1448,65925.0,65924.0,1.02308004]
[1722401986864,0.1548,65925.0,65924.0,1.02308004]
[1722401987111,0.1548,65925.0,65924.0,1.02463424]
[1722401987358,0.1748,65925.0,65924.0,1.02308004]
[1722401988097,0.1748,65925.0,65924.0,0.71970104]
[1722401989501,0.1748,65925.0,65924.0,1.02308004]
[1722401989735,0.1548,65925.0,65924.0,1.02308004]
[1722401990438,0.1448,65925.0,65924.0,1.02308004]
[1722401990695,0.1548,65925.0,65924.0,1.02308004]
[1722401991197,0.1448,65925.0,65924.0,1.02308004]
[1722401991431,0.1548,65925.0,65924.0,1.02308004]
[1722401991734,0.1448,65925.0,65924.0,1.02308004]
[1722401991935,0.1548,65925.0,65924.0,1.02308004]
[1722401992468,0.1548,65925.0,65924.0,0.71970104]
[1722401992737,0.1548,65925.0,65924.0,1.02308004]
[1722401994725,0.1568,65925.0,65924.0,0.71970104]
[1722401995008,0.1768,65925.0,65924.0,0.26463304]
[1722401995310,0.1768,65925.0,65924.0,0.014]
[1722401995997,0.1768,65925.0,65924.0,0.165689]
[1722401997250,0.1758,65925.0,65924.0,0.151689]
[1722401997483,0.1738,65925.0,65924.0,0.151689]
[1722401997718,0.1768,65925.0,65924.0,0.014]
[1722401997957,0.1768,65925.0,65924.0,0.1672432]
[1722401999143,0.1768,65925.0,65924.0,0.014]
[1722402000363,0.1768,65925.0,65924.0,0.165689]
[1722402000599,0.1768,65925.0,65924.0,0.014]
[1722402000848,0.1768,65925.0,65924.0,0.165689]
[1722402001072,0.29871096,65925.0,65924.0,0.165689]
[1722402001538,0.27870097,65925.0,65924.0,0.62125524]
[1722402001764,0.1748,65925.0,65924.0,0.92463424]
[1722402002009,0.1748,65925.0,65924.0,0.61820104]
[1722402002010,0.1768,65925.0,65924.0,0.61820104]
[1722402002478,0.1768,65925.0,65924.0,0.16313304]
[1722402002713,0.1768,65925.0,65924.0,0.0125]
[1722402003184,0.01,65935.0,65934.0,0.151666]
[1722402003195,0.00083,65937.0,65936.0,0.85831]
[1722402003456,0.00083,65937.0,65936.0,1.23698116]
[1722402003457,0.44527115,65937.0,65936.0,1.23698116]
[1722402003709,0.00083,65937.0,65936.0,1.30392859]
[1722402003928,0.00083,65937.0,65936.0,1.23698116]
[1722402004150,0.00083,65937.0,65936.0,1.31226704]
[1722402004375,0.00083,65937.0,65936.0,0.25063304]
[1722402004376,0.01083,65937.0,65936.0,0.25063304]
[1722402004607,0.01083,65937.0,65936.0,0.40229504]
[1722402004813,0.01083,65937.0,65936.0,0.70561904]
[1722402005023,0.03283,65937.0,65936.0,0.15063304]
[1722402005240,0.03283,65937.0,65936.0,0.30229504]
[1722402005463,0.03083,65937.0,65936.0,0.60561904]
[1722402005653,0.03283,65937.0,65936.0,0.60561904]
[1722402005860,0.03083,65937.0,65936.0,0.60561904]
[1722402006483,0.01083,65937.0,65936.0,1.21226704]
[1722402006695,0.01083,65937.0,65936.0,1.31226704]
[1722402006696,0.00083,65937.0,65936.0,1.31226704]
[1722402007356,0.00083,65937.0,65936.0,1.62959104]
[1722402007573,0.00083,65937.0,65936.0,1.65259104]
[1722402007789,0.00083,65937.0,65936.0,1.32626704]
[1722402008205,0.00083,65937.0,65936.0,1.31226704]
[1722402008420,0.99583062,65938.0,65937.0,1.061616]
[1722402008634,0.99583062,65938.0,65937.0,1.31224904]
[1722402009059,1.00583062,65938.0,65937.0,1.31224904]
[1722402009323,0.99583062,65938.0,65937.0,1.31224904]
[1722402009541,1.02783062,65938.0,65937.0,0.70561104]
[1722402009753,1.02565513,65938.0,65937.0,0.70561104]
[1722402009964,1.02765513,65938.0,65937.0,0.70561104]
[1722402010173,1.02765513,65938.0,65937.0,0.71961104]
[1722402010396,1.02765513,65938.0,65937.0,0.40229204]
[1722402010884,1.02765513,65938.0,65937.0,0.41629204]
[1722402011131,1.02765513,65938.0,65924.0,0.00911287]
[1722402011132,0.01,65925.0,65924.0,0.455064]